[Event "Titled Tuesday Blitz August 1 Late 2023"]
[White "Mindhunter08"]
[Black "Villarreal, Agustin"]
[BlackFideId "125687"]
[WhiteElo "2505"]
[BlackElo "2339"]
[Result "0-1"]
[Round "5"]
[TimeControl "180+1"]
[Date "2023.08.01"]
[WhiteClock "0:00:01"]
[BlackClock "0:00:48"]
[Board "100"]

1. e4 {[%clk 0:03:00]}  e5 {[%clk 0:02:58]} 2. Nf3 {[%clk 0:02:59]}  Nc6 {[%clk 0:02:58]} 3. Bc4 {[%clk 0:02:59]}  Nf6 {[%clk 0:02:57]} 4. d3 {[%clk 0:02:58]}  h6 {[%clk 0:02:57]} 5. c3 {[%clk 0:02:57]}  d6 {[%clk 0:02:57]} 6. Nbd2 {[%clk 0:02:52]}  g6 {[%clk 0:02:56]} 7. O-O {[%clk 0:02:51]}  Bg7 {[%clk 0:02:57]} 8. Re1 {[%clk 0:02:50]}  O-O {[%clk 0:02:58]} 9. Bb3 {[%clk 0:02:49]}  d5 {[%clk 0:02:55]} 10. exd5 {[%clk 0:02:44]}  Nxd5 {[%clk 0:02:56]} 11. Ne4 {[%clk 0:02:40]}  Re8 {[%clk 0:02:54]} 12. Bxh6 {[%clk 0:02:20]}  Nxc3 {[%clk 0:02:54]} 13. Qc1 {[%clk 0:01:48]}  Nxe4 {[%clk 0:02:47]} 14. dxe4 {[%clk 0:01:43]}  Be6 {[%clk 0:02:46]} 15. Bxg7 {[%clk 0:01:39]}  Kxg7 {[%clk 0:02:45]} 16. Qc3 {[%clk 0:01:30]}  Bxb3 {[%clk 0:02:43]} 17. Qxb3 {[%clk 0:01:30]}  Rb8 {[%clk 0:02:37]} 18. Rad1 {[%clk 0:01:29]}  Qe7 {[%clk 0:02:37]} 19. Qc3 {[%clk 0:01:20]}  Rbd8 {[%clk 0:02:29]} 20. Rd5 {[%clk 0:01:19]}  f6 {[%clk 0:02:27]} 21. Red1 {[%clk 0:01:18]}  Rxd5 {[%clk 0:02:25]} 22. exd5 {[%clk 0:01:17]}  Nd4 {[%clk 0:02:06]} 23. Nxd4 {[%clk 0:01:04]}  exd4 {[%clk 0:02:06]} 24. Qd2 {[%clk 0:01:05]}  Qe5 {[%clk 0:02:03]} 25. g3 {[%clk 0:00:57]}  Qxd5 {[%clk 0:02:02]} 26. Qf4 {[%clk 0:00:55]}  c5 {[%clk 0:01:54]} 27. Qc7+ {[%clk 0:00:54]}  Kg8 {[%clk 0:01:54]} 28. h4 {[%clk 0:00:51]}  d3 {[%clk 0:01:49]} 29. Qf4 {[%clk 0:00:49]}  Kf7 {[%clk 0:01:44]} 30. b3 {[%clk 0:00:43]}  b5 {[%clk 0:01:43]} 31. Qh6 {[%clk 0:00:38]}  Re2 {[%clk 0:01:10]} 32. Qh7+ {[%clk 0:00:35]}  Ke6 {[%clk 0:01:10]} 33. Qxg6 {[%clk 0:00:20]}  c4 {[%clk 0:01:06]} 34. bxc4 {[%clk 0:00:18]}  bxc4 {[%clk 0:01:07]} 35. Qe8+ {[%clk 0:00:16]}  Kd6 {[%clk 0:01:03]} 36. Qd8+ {[%clk 0:00:16]}  Kc5 {[%clk 0:01:01]} 37. Qxf6 {[%clk 0:00:15]}  Qe5 {[%clk 0:00:55]} 38. Qf8+ {[%clk 0:00:16]}  Kd4 {[%clk 0:00:54]} 39. Qd8+ {[%clk 0:00:15]}  Kc3 {[%clk 0:00:53]} 40. Qf8 {[%clk 0:00:13]}  Re1+ {[%clk 0:00:52]} 41. Rxe1 {[%clk 0:00:11]}  Qxe1+ {[%clk 0:00:53]} 42. Kg2 {[%clk 0:00:10]}  Qe4+ {[%clk 0:00:53]} 43. Kh2 {[%clk 0:00:09]}  d2 {[%clk 0:00:53]} 44. Qa3+ {[%clk 0:00:09]}  Kc2 {[%clk 0:00:50]} 45. Qa4+ {[%clk 0:00:09]}  Kd3 {[%clk 0:00:50]} 46. Qd7+ {[%clk 0:00:07]}  Ke2 {[%clk 0:00:49]} 47. Qb7 {[%clk 0:00:01]}  Qxb7 {[%clk 0:00:48]} 0-1


[Site "https://www.chess.com"]

[Event "Titled Tuesday Blitz August 1 Late 2023"]
[White "Ardila, Oscar Humberto"]
[Black "Jovic, Stanoje"]
[WhiteFideId "4404742"]
[BlackFideId "905020"]
[WhiteElo "2317"]
[BlackElo "2502"]
[Result "0-1"]
[Round "5"]
[TimeControl "180+1"]
[Date "2023.08.01"]
[WhiteClock "0:00:00"]
[BlackClock "0:00:32"]
[Board "104"]

1. d4 {[%clk 0:02:57]}  Nf6 {[%clk 0:02:58]} 2. Nf3 {[%clk 0:02:56]}  e6 {[%clk 0:02:58]} 3. c4 {[%clk 0:02:55]}  d5 {[%clk 0:02:54]} 4. Nc3 {[%clk 0:02:54]}  Bb4 {[%clk 0:02:53]} 5. Bd2 {[%clk 0:02:53]}  O-O {[%clk 0:02:51]} 6. e3 {[%clk 0:02:53]}  Bxc3 {[%clk 0:02:48]} 7. Bxc3 {[%clk 0:02:52]}  Ne4 {[%clk 0:02:48]} 8. Rc1 {[%clk 0:02:52]}  b6 {[%clk 0:02:45]} 9. Be2 {[%clk 0:02:51]}  Nd7 {[%clk 0:02:41]} 10. O-O {[%clk 0:02:51]}  Bb7 {[%clk 0:02:41]} 11. Be1 {[%clk 0:02:50]}  f5 {[%clk 0:02:34]} 12. Nd2 {[%clk 0:02:50]}  c5 {[%clk 0:02:29]} 13. Nxe4 {[%clk 0:02:47]}  fxe4 {[%clk 0:02:27]} 14. Bg4 {[%clk 0:02:42]}  Qf6 {[%clk 0:02:18]} 15. cxd5 {[%clk 0:02:41]}  Bxd5 {[%clk 0:02:15]} 16. dxc5 {[%clk 0:02:30]}  Nxc5 {[%clk 0:02:11]} 17. Bc3 {[%clk 0:02:30]}  Qg6 {[%clk 0:02:07]} 18. Be2 {[%clk 0:01:54]}  Bxa2 {[%clk 0:01:57]} 19. Ra1 {[%clk 0:01:48]}  Bd5 {[%clk 0:01:52]} 20. Be5 {[%clk 0:01:44]}  Nd3 {[%clk 0:01:46]} 21. Bc3 {[%clk 0:00:58]}  a5 {[%clk 0:01:43]} 22. Qd2 {[%clk 0:00:57]}  Rac8 {[%clk 0:01:31]} 23. Bd4 {[%clk 0:00:55]}  Rc6 {[%clk 0:01:26]} 24. Bc3 {[%clk 0:00:29]}  Rfc8 {[%clk 0:01:07]} 25. Rad1 {[%clk 0:00:29]}  b5 {[%clk 0:01:02]} 26. Bxd3 {[%clk 0:00:08]}  exd3 {[%clk 0:01:01]} 27. f3 {[%clk 0:00:08]}  b4 {[%clk 0:00:59]} 28. Be5 {[%clk 0:00:06]}  Rc2 {[%clk 0:00:57]} 29. Bg3 {[%clk 0:00:04]}  Rxd2 {[%clk 0:00:56]} 30. Rxd2 {[%clk 0:00:05]}  Rc2 {[%clk 0:00:55]} 31. Rfd1 {[%clk 0:00:05]}  Rxd2 {[%clk 0:00:55]} 32. Rxd2 {[%clk 0:00:06]}  Bc4 {[%clk 0:00:49]} 33. e4 {[%clk 0:00:06]}  a4 {[%clk 0:00:46]} 34. Bd6 {[%clk 0:00:05]}  Qg5 {[%clk 0:00:38]} 35. f4 {[%clk 0:00:05]}  Qa5 {[%clk 0:00:35]} 36. Kf2 {[%clk 0:00:04]}  Qb6+ {[%clk 0:00:32]} 37. Kf3 {[%clk 0:00:00]}  Qxd6 {[%clk 0:00:32]} 0-1


[Site "https://www.chess.com"]

[Event "Titled Tuesday Blitz August 1 Late 2023"]
[White "Koutlas, Nikolaos"]
[Black "Thiel, Thomas"]
[WhiteFideId "25827138"]
[BlackFideId "4615964"]
[WhiteElo "2499"]
[BlackElo "2277"]
[Result "1-0"]
[Round "5"]
[TimeControl "180+1"]
[Date "2023.08.01"]
[WhiteClock "0:00:48"]
[BlackClock "0:00:13"]
[Board "106"]

1. Nf3 {[%clk 0:02:58]}  Nf6 {[%clk 0:02:57]} 2. d4 {[%clk 0:02:53]}  g6 {[%clk 0:02:57]} 3. Bg5 {[%clk 0:02:52]}  Bg7 {[%clk 0:02:56]} 4. Nbd2 {[%clk 0:02:49]}  O-O {[%clk 0:02:55]} 5. c3 {[%clk 0:02:47]}  d5 {[%clk 0:02:54]} 6. e3 {[%clk 0:02:45]}  Nc6 {[%clk 0:02:51]} 7. Be2 {[%clk 0:02:44]}  h6 {[%clk 0:02:49]} 8. Bh4 {[%clk 0:02:40]}  Ne4 {[%clk 0:02:49]} 9. Nxe4 {[%clk 0:02:38]}  dxe4 {[%clk 0:02:48]} 10. Nd2 {[%clk 0:02:38]}  g5 {[%clk 0:02:48]} 11. Bg3 {[%clk 0:02:37]}  f5 {[%clk 0:02:48]} 12. f4 {[%clk 0:02:24]}  gxf4 {[%clk 0:02:38]} 13. Bxf4 {[%clk 0:02:23]}  e5 {[%clk 0:02:37]} 14. dxe5 {[%clk 0:02:18]}  Bxe5 {[%clk 0:02:37]} 15. Qb3+ {[%clk 0:02:15]}  Kh7 {[%clk 0:02:35]} 16. g3 {[%clk 0:02:12]}  Bxf4 {[%clk 0:02:32]} 17. gxf4 {[%clk 0:02:11]}  Qh4+ {[%clk 0:02:25]} 18. Kd1 {[%clk 0:02:12]}  Qf2 {[%clk 0:02:12]} 19. c4 {[%clk 0:01:54]}  Be6 {[%clk 0:02:01]} 20. Rf1 {[%clk 0:01:40]}  Qxh2 {[%clk 0:01:55]} 21. Qxb7 {[%clk 0:01:39]}  Ne7 {[%clk 0:01:25]} 22. Qxc7 {[%clk 0:01:38]}  Rf7 {[%clk 0:01:24]} 23. Qe5 {[%clk 0:01:32]}  Bd7 {[%clk 0:01:14]} 24. Nxe4 {[%clk 0:01:25]}  fxe4 {[%clk 0:01:11]} 25. Qxe4+ {[%clk 0:01:25]}  Bf5 {[%clk 0:01:10]} 26. Qxa8 {[%clk 0:01:25]}  Ng6 {[%clk 0:01:00]} 27. Qf3 {[%clk 0:00:58]}  Nh4 {[%clk 0:00:44]} 28. Qf2 {[%clk 0:00:56]}  Rd7+ {[%clk 0:00:43]} 29. Kc1 {[%clk 0:00:56]}  Qh3 {[%clk 0:00:30]} 30. Rg1 {[%clk 0:00:53]}  Be4 {[%clk 0:00:13]} 31. Bg4 {[%clk 0:00:48]} 1-0


[Site "https://www.chess.com"]

[Event "Titled Tuesday Blitz August 1 Late 2023"]
[White "Mortazavi, Ali"]
[Black "Feliz Dotel, Dewar Bienvenido"]
[WhiteFideId "401323"]
[BlackFideId "6402801"]
[WhiteElo "2498"]
[BlackElo "2171"]
[Result "1-0"]
[Round "5"]
[TimeControl "180+1"]
[Date "2023.08.01"]
[WhiteClock "0:01:39"]
[BlackClock "0:00:08"]
[Board "107"]

1. Nf3 {[%clk 0:03:00]}  d5 {[%clk 0:02:59]} 2. g3 {[%clk 0:03:00]}  c5 {[%clk 0:02:58]} 3. Bg2 {[%clk 0:03:01]}  e6 {[%clk 0:02:58]} 4. O-O {[%clk 0:03:02]}  Nc6 {[%clk 0:02:58]} 5. d3 {[%clk 0:03:03]}  Nf6 {[%clk 0:02:59]} 6. Nbd2 {[%clk 0:03:04]}  Be7 {[%clk 0:02:57]} 7. e4 {[%clk 0:03:04]}  h6 {[%clk 0:02:57]} 8. Re1 {[%clk 0:03:04]}  O-O {[%clk 0:02:57]} 9. e5 {[%clk 0:03:00]}  Nd7 {[%clk 0:02:57]} 10. Nf1 {[%clk 0:03:01]}  b5 {[%clk 0:02:56]} 11. h4 {[%clk 0:03:01]}  Bb7 {[%clk 0:02:56]} 12. Bf4 {[%clk 0:03:01]}  a5 {[%clk 0:02:56]} 13. N1h2 {[%clk 0:03:02]}  a4 {[%clk 0:02:55]} 14. Qd2 {[%clk 0:02:58]}  h5 {[%clk 0:02:49]} 15. a3 {[%clk 0:02:56]}  b4 {[%clk 0:02:49]} 16. Ng5 {[%clk 0:02:49]}  bxa3 {[%clk 0:02:41]} 17. bxa3 {[%clk 0:02:48]}  Nd4 {[%clk 0:02:37]} 18. Rab1 {[%clk 0:02:48]}  Ba6 {[%clk 0:02:34]} 19. c3 {[%clk 0:02:49]}  Nf5 {[%clk 0:02:33]} 20. Bh3 {[%clk 0:02:19]}  Bxg5 {[%clk 0:02:06]} 21. Bxg5 {[%clk 0:02:15]}  Ne7 {[%clk 0:02:06]} 22. g4 {[%clk 0:02:10]}  hxg4 {[%clk 0:01:59]} 23. Nxg4 {[%clk 0:02:10]}  Qe8 {[%clk 0:01:39]} 24. Nf6+ {[%clk 0:01:55]}  Nxf6 {[%clk 0:00:55]} 25. exf6 {[%clk 0:01:52]}  Nc6 {[%clk 0:00:20]} 26. Rb6 {[%clk 0:01:51]}  g6 {[%clk 0:00:15]} 27. Bh6 {[%clk 0:01:47]}  Ne7 {[%clk 0:00:13]} 28. Bg7 {[%clk 0:01:44]}  Nf5 {[%clk 0:00:11]} 29. Bxf5 {[%clk 0:01:43]}  exf5 {[%clk 0:00:11]} 30. Rxe8 {[%clk 0:01:42]}  Rfxe8 {[%clk 0:00:11]} 31. Qh6 {[%clk 0:01:42]}  Re2 {[%clk 0:00:11]} 32. Rb8+ {[%clk 0:01:39]}  Rxb8 {[%clk 0:00:10]} 33. Kf1 {[%clk 0:01:40]}  Bxd3 {[%clk 0:00:08]} 34. Qh8# {[%clk 0:01:39]} 1-0


[Site "https://www.chess.com"]

[Event "Titled Tuesday Blitz August 1 Late 2023"]
[White "MrLudus"]
[Black "Crispin Ferreras, Darvi Abraham"]
[BlackFideId "6402771"]
[WhiteElo "2080"]
[BlackElo "2346"]
[Result "0-1"]
[Round "5"]
[TimeControl "180+1"]
[Date "2023.08.01"]
[WhiteClock "0:00:08"]
[BlackClock "0:01:44"]
[Board "110"]

1. e4 {[%clk 0:03:00]}  e6 {[%clk 0:02:59]} 2. d4 {[%clk 0:03:00]}  d5 {[%clk 0:02:57]} 3. Nd2 {[%clk 0:03:01]}  Nf6 {[%clk 0:02:54]} 4. e5 {[%clk 0:03:01]}  Nfd7 {[%clk 0:02:53]} 5. Bd3 {[%clk 0:03:02]}  c5 {[%clk 0:02:53]} 6. c3 {[%clk 0:03:02]}  Nc6 {[%clk 0:02:54]} 7. Ne2 {[%clk 0:03:03]}  Qb6 {[%clk 0:02:54]} 8. Nf3 {[%clk 0:03:02]}  Be7 {[%clk 0:02:54]} 9. O-O {[%clk 0:03:02]}  cxd4 {[%clk 0:02:51]} 10. cxd4 {[%clk 0:03:02]}  Nb4 {[%clk 0:02:44]} 11. Bb1 {[%clk 0:03:02]}  Qc7 {[%clk 0:02:42]} 12. a3 {[%clk 0:03:02]}  Nc6 {[%clk 0:02:41]} 13. Be3 {[%clk 0:02:52]}  b5 {[%clk 0:02:41]} 14. b4 {[%clk 0:02:48]}  Bb7 {[%clk 0:02:41]} 15. Bd3 {[%clk 0:02:47]}  a6 {[%clk 0:02:40]} 16. Rc1 {[%clk 0:02:43]}  Rc8 {[%clk 0:02:39]} 17. Nd2 {[%clk 0:02:40]}  Nb6 {[%clk 0:02:38]} 18. Nb3 {[%clk 0:02:38]}  Nc4 {[%clk 0:02:38]} 19. Bxc4 {[%clk 0:02:32]}  bxc4 {[%clk 0:02:31]} 20. Nc5 {[%clk 0:02:32]}  a5 {[%clk 0:02:31]} 21. Qa4 {[%clk 0:02:26]}  O-O {[%clk 0:02:28]} 22. Nc3 {[%clk 0:02:09]}  axb4 {[%clk 0:02:28]} 23. axb4 {[%clk 0:02:10]}  Ra8 {[%clk 0:02:27]} 24. Qb5 {[%clk 0:02:10]}  Rfb8 {[%clk 0:02:25]} 25. Ra1 {[%clk 0:01:24]}  Rxa1 {[%clk 0:02:24]} 26. Rxa1 {[%clk 0:01:25]}  Bc8 {[%clk 0:02:25]} 27. Na6 {[%clk 0:01:18]}  Bxa6 {[%clk 0:02:23]} 28. Qxa6 {[%clk 0:01:18]}  Nxb4 {[%clk 0:02:22]} 29. Qa7 {[%clk 0:01:16]}  Qxa7 {[%clk 0:02:22]} 30. Rxa7 {[%clk 0:01:16]}  Bf8 {[%clk 0:02:22]} 31. g3 {[%clk 0:01:07]}  Nc2 {[%clk 0:02:20]} 32. Kf1 {[%clk 0:00:43]}  Nxe3+ {[%clk 0:02:19]} 33. fxe3 {[%clk 0:00:44]}  Rb3 {[%clk 0:02:19]} 34. Nd1 {[%clk 0:00:44]}  h5 {[%clk 0:02:14]} 35. Ke2 {[%clk 0:00:43]}  Ra3 {[%clk 0:02:10]} 36. Rxa3 {[%clk 0:00:34]}  Bxa3 {[%clk 0:02:10]} 37. h3 {[%clk 0:00:31]}  Kh7 {[%clk 0:02:09]} 38. Kd2 {[%clk 0:00:20]}  Kg6 {[%clk 0:02:09]} 39. Nf2 {[%clk 0:00:14]}  Bb4+ {[%clk 0:02:08]} 40. Kc2 {[%clk 0:00:14]}  Be1 {[%clk 0:02:08]} 41. Nh1 {[%clk 0:00:15]}  Kf5 {[%clk 0:02:07]} 42. Kd1 {[%clk 0:00:16]}  Bb4 {[%clk 0:02:06]} 43. Nf2 {[%clk 0:00:15]}  g5 {[%clk 0:02:05]} 44. Ke2 {[%clk 0:00:13]}  g4 {[%clk 0:02:04]} 45. h4 {[%clk 0:00:13]}  Ba5 {[%clk 0:01:57]} 46. Nd1 {[%clk 0:00:13]}  Bc7 {[%clk 0:01:52]} 47. Nc3 {[%clk 0:00:12]}  f6 {[%clk 0:01:52]} 48. exf6 {[%clk 0:00:11]}  Kxf6 {[%clk 0:01:53]} 49. e4 {[%clk 0:00:11]}  Bxg3 {[%clk 0:01:49]} 50. exd5 {[%clk 0:00:11]}  exd5 {[%clk 0:01:48]} 51. Nxd5+ {[%clk 0:00:11]}  Ke6 {[%clk 0:01:47]} 52. Nb6 {[%clk 0:00:11]}  c3 {[%clk 0:01:46]} 53. Kd3 {[%clk 0:00:08]}  Bxh4 {[%clk 0:01:44]} 0-1


[Site "https://www.chess.com"]

[Event "Titled Tuesday Blitz August 1 Late 2023"]
[White "Chabris, Christopher"]
[Black "Novik, Maxim"]
[WhiteFideId "2005263"]
[BlackFideId "4102924"]
[WhiteElo "2349"]
[BlackElo "2500"]
[Result "1-0"]
[Round "5"]
[TimeControl "180+1"]
[Date "2023.08.01"]
[WhiteClock "0:01:52"]
[BlackClock "0:01:48"]
[Board "113"]

1. e4 {[%clk 0:03:00]}  c6 {[%clk 0:02:59]} 2. d4 {[%clk 0:03:00]}  d5 {[%clk 0:02:59]} 3. e5 {[%clk 0:03:00]}  Bf5 {[%clk 0:02:59]} 4. Nf3 {[%clk 0:03:00]}  e6 {[%clk 0:02:58]} 5. Be2 {[%clk 0:03:01]}  Nd7 {[%clk 0:02:58]} 6. O-O {[%clk 0:03:01]}  Ne7 {[%clk 0:02:58]} 7. Nbd2 {[%clk 0:03:01]}  Ng6 {[%clk 0:02:58]} 8. Nb3 {[%clk 0:03:00]}  f6 {[%clk 0:02:58]} 9. c4 {[%clk 0:02:53]}  fxe5 {[%clk 0:02:56]} 10. cxd5 {[%clk 0:02:42]}  exd5 {[%clk 0:02:53]} 11. dxe5 {[%clk 0:02:35]}  Ngxe5 {[%clk 0:02:52]} 12. Nxe5 {[%clk 0:02:17]}  Nxe5 {[%clk 0:02:52]} 13. Nd4 {[%clk 0:02:17]}  Bd7 {[%clk 0:02:35]} 14. Re1 {[%clk 0:02:11]}  Be7 {[%clk 0:02:12]} 15. Bh5+ {[%clk 0:02:05]}  Ng6 {[%clk 0:02:06]} 16. Bxg6+ {[%clk 0:01:54]}  hxg6 {[%clk 0:02:05]} 17. Bg5 {[%clk 0:01:54]}  Qb8 {[%clk 0:01:48]} 18. Rxe7+ {[%clk 0:01:52]} 1-0


[Site "https://www.chess.com"]

[Event "Titled Tuesday Blitz August 1 Late 2023"]
[White "Vafin, Ayrat"]
[Black "Nanu, Costica-Ciprian"]
[WhiteFideId "4146530"]
[BlackFideId "1204580"]
[WhiteElo "2280"]
[BlackElo "2491"]
[Result "0-1"]
[Round "5"]
[TimeControl "180+1"]
[Date "2023.08.01"]
[WhiteClock "0:00:19"]
[BlackClock "0:00:39"]
[Board "115"]

1. Nf3 {[%clk 0:03:00]}  d5 {[%clk 0:02:59]} 2. g3 {[%clk 0:03:01]}  Nf6 {[%clk 0:02:59]} 3. Bg2 {[%clk 0:03:01]}  Bg4 {[%clk 0:02:59]} 4. O-O {[%clk 0:03:01]}  Nbd7 {[%clk 0:02:58]} 5. d4 {[%clk 0:03:01]}  c6 {[%clk 0:02:58]} 6. Nbd2 {[%clk 0:03:02]}  e6 {[%clk 0:02:58]} 7. Re1 {[%clk 0:03:02]}  Bd6 {[%clk 0:02:57]} 8. e4 {[%clk 0:03:03]}  dxe4 {[%clk 0:02:58]} 9. Nxe4 {[%clk 0:03:03]}  Nxe4 {[%clk 0:02:58]} 10. Rxe4 {[%clk 0:03:04]}  Nf6 {[%clk 0:02:59]} 11. Re1 {[%clk 0:03:05]}  O-O {[%clk 0:02:59]} 12. c3 {[%clk 0:03:05]}  h6 {[%clk 0:02:55]} 13. Qb3 {[%clk 0:03:05]}  Qb6 {[%clk 0:02:54]} 14. Ne5 {[%clk 0:03:05]}  Bf5 {[%clk 0:02:52]} 15. Nc4 {[%clk 0:03:03]}  Qxb3 {[%clk 0:02:52]} 16. axb3 {[%clk 0:03:04]}  Bc7 {[%clk 0:02:52]} 17. b4 {[%clk 0:03:02]}  Rfe8 {[%clk 0:02:39]} 18. Na5 {[%clk 0:02:44]}  Rab8 {[%clk 0:02:32]} 19. Nb3 {[%clk 0:02:39]}  a6 {[%clk 0:02:30]} 20. Nc5 {[%clk 0:02:39]}  e5 {[%clk 0:02:28]} 21. dxe5 {[%clk 0:02:30]}  Rxe5 {[%clk 0:02:23]} 22. Rxe5 {[%clk 0:02:06]}  Bxe5 {[%clk 0:02:24]} 23. Be3 {[%clk 0:02:06]}  Nd7 {[%clk 0:02:16]} 24. Rd1 {[%clk 0:01:42]}  Nxc5 {[%clk 0:02:15]} 25. bxc5 {[%clk 0:01:41]}  Be6 {[%clk 0:02:11]} 26. Bf3 {[%clk 0:01:28]}  Kf8 {[%clk 0:02:08]} 27. Kg2 {[%clk 0:01:27]}  Ke7 {[%clk 0:02:08]} 28. h4 {[%clk 0:01:26]}  Rd8 {[%clk 0:02:05]} 29. Rxd8 {[%clk 0:01:25]}  Kxd8 {[%clk 0:02:06]} 30. Kf1 {[%clk 0:01:22]}  Bc4+ {[%clk 0:02:05]} 31. Ke1 {[%clk 0:01:22]}  a5 {[%clk 0:02:03]} 32. Kd2 {[%clk 0:01:15]}  Ke7 {[%clk 0:01:59]} 33. Kc2 {[%clk 0:01:07]}  a4 {[%clk 0:01:57]} 34. Bd4 {[%clk 0:01:02]}  Ke6 {[%clk 0:01:54]} 35. Kd2 {[%clk 0:01:00]}  Bd5 {[%clk 0:01:48]} 36. Bd1 {[%clk 0:00:57]}  Bb3 {[%clk 0:01:41]} 37. Bf3 {[%clk 0:00:57]}  g5 {[%clk 0:01:30]} 38. hxg5 {[%clk 0:00:53]}  hxg5 {[%clk 0:01:30]} 39. Be4 {[%clk 0:00:45]}  f5 {[%clk 0:01:27]} 40. Bf3 {[%clk 0:00:45]}  g4 {[%clk 0:01:01]} 41. Bg2 {[%clk 0:00:34]}  f4 {[%clk 0:01:00]} 42. Bxe5 {[%clk 0:00:32]}  Kxe5 {[%clk 0:01:00]} 43. gxf4+ {[%clk 0:00:31]}  Kxf4 {[%clk 0:01:00]} 44. Kd3 {[%clk 0:00:23]}  Ke5 {[%clk 0:00:51]} 45. Ke3 {[%clk 0:00:20]}  Bd5 {[%clk 0:00:49]} 46. Bf1 {[%clk 0:00:21]}  Be4 {[%clk 0:00:41]} 47. Bc4 {[%clk 0:00:21]}  Bc2 {[%clk 0:00:41]} 48. Bg8 {[%clk 0:00:19]}  Bb3 {[%clk 0:00:36]} 49. Bxb3 {[%clk 0:00:18]}  axb3 {[%clk 0:00:37]} 50. c4 {[%clk 0:00:18]}  Kf5 {[%clk 0:00:37]} 51. f4 {[%clk 0:00:12]}  g3 {[%clk 0:00:35]} 52. Kf3 {[%clk 0:00:13]}  g2 {[%clk 0:00:35]} 53. Kxg2 {[%clk 0:00:14]}  Kxf4 {[%clk 0:00:36]} 54. Kf2 {[%clk 0:00:14]}  Ke4 {[%clk 0:00:37]} 55. Ke2 {[%clk 0:00:15]}  Kd4 {[%clk 0:00:37]} 56. Kd2 {[%clk 0:00:16]}  Kxc4 {[%clk 0:00:38]} 57. Ke3 {[%clk 0:00:17]}  Kxc5 {[%clk 0:00:38]} 58. Kd3 {[%clk 0:00:17]}  Kb4 {[%clk 0:00:38]} 59. Kd4 {[%clk 0:00:18]}  c5+ {[%clk 0:00:38]} 60. Kd5 {[%clk 0:00:19]}  c4 {[%clk 0:00:39]} 61. Kd4 {[%clk 0:00:20]}  b5 {[%clk 0:00:39]} 62. Kd5 {[%clk 0:00:19]}  c3 {[%clk 0:00:39]} 0-1


[Site "https://www.chess.com"]

[Event "Titled Tuesday Blitz August 1 Late 2023"]
[White "Bashylina, Luisa"]
[Black "Hirneise, Jens"]
[WhiteFideId "12983292"]
[BlackFideId "24614734"]
[WhiteElo "2268"]
[BlackElo "2474"]
[Result "1-0"]
[Round "5"]
[TimeControl "180+1"]
[Date "2023.08.01"]
[WhiteClock "0:01:15"]
[BlackClock "0:00:00"]
[Board "117"]

1. e4 {[%clk 0:03:00]}  d5 {[%clk 0:01:20]} 2. exd5 {[%clk 0:02:59]}  Qxd5 {[%clk 0:01:10]} 3. Nc3 {[%clk 0:02:58]}  Qd8 {[%clk 0:01:05]} 4. d4 {[%clk 0:02:56]}  Nc6 {[%clk 0:00:59]} 5. Be3 {[%clk 0:02:52]}  e6 {[%clk 0:00:44]} 6. Nf3 {[%clk 0:02:50]}  Be7 {[%clk 0:00:27]} 7. Bd3 {[%clk 0:02:44]}  Nf6 {[%clk 0:00:12]} 8. h3 {[%clk 0:02:42]}  Bd7 {[%clk 0:00:08]} 9. O-O {[%clk 0:02:39]}  Nb4 {[%clk 0:00:08]} 10. Bc4 {[%clk 0:02:28]}  Nbd5 {[%clk 0:00:09]} 11. Nxd5 {[%clk 0:02:16]}  exd5 {[%clk 0:00:10]} 12. Bd3 {[%clk 0:02:14]}  O-O {[%clk 0:00:10]} 13. Ne5 {[%clk 0:02:11]}  g6 {[%clk 0:00:08]} 14. f4 {[%clk 0:02:06]}  Ne4 {[%clk 0:00:08]} 15. Nxd7 {[%clk 0:01:52]}  Qxd7 {[%clk 0:00:08]} 16. f5 {[%clk 0:01:52]}  Bd6 {[%clk 0:00:07]} 17. Bxe4 {[%clk 0:01:43]}  dxe4 {[%clk 0:00:07]} 18. Qe1 {[%clk 0:01:32]}  f6 {[%clk 0:00:07]} 19. Bh6 {[%clk 0:01:26]}  Rf7 {[%clk 0:00:07]} 20. Qxe4 {[%clk 0:01:24]}  c6 {[%clk 0:00:05]} 21. fxg6 {[%clk 0:01:22]}  Re7 {[%clk 0:00:00]} 22. Qd3 {[%clk 0:01:15]} 1-0


[Site "https://www.chess.com"]

[Event "Titled Tuesday Blitz August 1 Late 2023"]
[White "Rama, Tejas"]
[Black "Aung Thant Zin"]
[WhiteFideId "30907381"]
[BlackFideId "13000063"]
[WhiteElo "2433"]
[BlackElo "2160"]
[Result "1-0"]
[Round "5"]
[TimeControl "180+1"]
[Date "2023.08.01"]
[WhiteClock "0:00:11"]
[BlackClock "0:00:00"]
[Board "120"]

1. d4 {[%clk 0:02:55]}  Nf6 {[%clk 0:02:47]} 2. c4 {[%clk 0:02:53]}  e6 {[%clk 0:02:47]} 3. Nf3 {[%clk 0:02:53]}  b6 {[%clk 0:02:47]} 4. g3 {[%clk 0:02:53]}  Ba6 {[%clk 0:02:46]} 5. b3 {[%clk 0:02:53]}  Bb4+ {[%clk 0:02:46]} 6. Bd2 {[%clk 0:02:53]}  Be7 {[%clk 0:02:47]} 7. Nc3 {[%clk 0:02:53]}  c6 {[%clk 0:02:47]} 8. e4 {[%clk 0:02:50]}  d5 {[%clk 0:02:46]} 9. Bd3 {[%clk 0:02:20]}  dxe4 {[%clk 0:02:29]} 10. Nxe4 {[%clk 0:02:19]}  Nbd7 {[%clk 0:02:28]} 11. O-O {[%clk 0:01:56]}  O-O {[%clk 0:02:27]} 12. Bc3 {[%clk 0:01:56]}  Bb7 {[%clk 0:02:18]} 13. Qe2 {[%clk 0:01:24]}  Re8 {[%clk 0:02:02]} 14. Rad1 {[%clk 0:01:22]}  Qc7 {[%clk 0:02:01]} 15. Ne5 {[%clk 0:01:04]}  Rad8 {[%clk 0:01:49]} 16. Ng5 {[%clk 0:00:54]}  c5 {[%clk 0:00:45]} 17. Nexf7 {[%clk 0:00:41]}  Nf8 {[%clk 0:00:41]} 18. Nxd8 {[%clk 0:00:35]}  Bxd8 {[%clk 0:00:33]} 19. Ne4 {[%clk 0:00:26]}  cxd4 {[%clk 0:00:29]} 20. Bxd4 {[%clk 0:00:23]}  Qc6 {[%clk 0:00:20]} 21. Rfe1 {[%clk 0:00:22]}  e5 {[%clk 0:00:13]} 22. Bb2 {[%clk 0:00:16]}  Ne6 {[%clk 0:00:07]} 23. Nxf6+ {[%clk 0:00:16]}  gxf6 {[%clk 0:00:07]} 24. Qe4 {[%clk 0:00:15]}  Ng5 {[%clk 0:00:03]} 25. Qxc6 {[%clk 0:00:14]}  Bxc6 {[%clk 0:00:00]} 26. Be2 {[%clk 0:00:11]} 1-0


[Site "https://www.chess.com"]